{"text_format":"1","workbook":"xlsx","n_sheets":4,"sheets":["Page 1","Page 2","Page 3","Page 4"],"not_rendered":{"charts":0,"images":3,"macros":1,"external_links":0,"defined_names":4,"comments":0,"pivot_tables":0},"unopened":[],"bounds":{"document_bytes":16777216,"sheet_cells":100000,"rows_first":2000,"rows_last":500,"rows_between":2000,"halvings":0,"cell_chars":16384,"cell_head_chars":4096},"cells_cut":0,"cells_raw":0,"read":"whole","date_system":"1900"}

{"sheet":"Page 1","index":0,"n_rows":47,"n_cols":53,"rows_kept":47,"cut":false,"hidden":false,"merged":[[31,7,31,8],[39,7,39,8],[46,7,46,8],[0,0,4,2],[6,0,6,8],[7,0,8,8],[9,0,9,8],[11,1,11,9],[14,1,14,2],[14,4,14,5],[15,1,15,2],[15,4,15,5]]}
["\nQuai de Nogent 1\nCH - 1400 Yverdon-les-Bains\nTél : +41 24 423 65 92\nCourriel : lamarive@yverdon-les-bains.ch",null,null,null,null,null,null,null,null,null,null,"lundi",{"$f":"TODAY()","v":"2022-05-16"}]
[null,null,null,null,null,null,null,null,null,null,null,"mardi"]
[null,null,null,null,null,null,null,null,null,null,null,"mercredi",{"$f":"M1+730","v":"2024-05-15"}]
[null,null,null,null,null,null,null,null,null,null,null,"jeudi"]
[null,null,null,null,null,null,null,null,null,null,null,"vendredi"]
[]
["Liste de commande vaisselle et matériel cuisine",null,null,null,null,null,null,null,null,null,null,"samedi"]
["A remplir s.v.p. par le/la responsable de la cuisine et envoyer \n20 jours avant la manifestation à LA MARIVE.",null,null,null,null,null,null,null,null,null,null,"dimanche"]
[]
["La vaisselle est mise à disposition moyennant un prix de location de CHF 50.- par tranche de 50 personnes et par repas"]
[]
["Organisateur/trice : "]
[]
[]
["Date :",null,null,"Jour :",{"$f":"B15","v":"00:00:00"}]
["au :",null,null,"Jour :",{"$f":"B16","v":"00:00:00"}]
[]
[null,"Stock","Commandé","Coul.des","Nbre de","Reçu","Rendu","Manque","Prix/pc","Total"]
[null,"Marive",null,"paniers","paniers",null,null,null,"casse/perte","manquant"]
[]
["1) PORCELAINE"]
[]
["Assiette système 26 cm avec\n3 chauffe-assiettes\n( 90 assiettes chacun )",2000,null,null,null,null,null,null,17,null,null,90,{"$f":"B23","v":2000}]
["Assiette dessert  21cm",1000,null,null,null,null,null,null,12,null,null,180,{"$f":"B24","v":1000}]
["Assiette creuse 22 cm",1000,null,null,{"$f":"ROUNDUP(C25/L25,0.1)","v":0},null,null,null,14,null,null,75,1000,75,150,225,300,375,450,525,600,675,750,825,900,975,1000]
["Tasse à café seule 19 cl",1000,null,"Brun",{"$f":"ROUNDUP(C26/L26,0.1)","v":0},null,null,null,9,null,null,25,1000,25,50,75,100,125,150,175,200,225,250,275,300,325,350,375,400,425,450,475,500,525,550,575,600,625,650,675,700,725,750,775,800,825,850,875,900,925,950,975,1000]
["Tasse mocca seule 13 cl",500,null,"Orange",0,null,null,null,6,null,null,36,500,36,72,108,144,180,216,252,288,324,360,396,432,468,500]
["Soucoupe mult. 14 cm",1000,null,"Gris",0,null,null,null,8,null,null,45,1000,45,90,135,180,225,270,315,360,405,450,495,540,585,630,675,720,765,810,855,900,945,990,1000,864,900,936,972,1000]
["Soucoupe mocca 12.5cm",500,null,"Noir",0,null,null,null,6,null,null,60,500,60,120,180,240,300,360,420,480,500]
["Bol à soupe/dessert 25cl",900,null,null,0,null,null,null,13,null,null,50,900,50,100,150,200,250,300,350,400,450,500,550,600,650,700,750,800,850,900]
[]
["2) VERRERIE",null,null,null,null,null,null,"s/total manquant"]
[]
["Verre vin blanc 12 cl",1500,null,"Blanc",{"$f":"ROUNDUP(C34/L34,0.1)","v":0},null,null,null,2.2999999999999998,null,null,49,1500,49,98,147,196,245,294,343,392,441,490,539,588,637,686,735,784,833,882,931,980,1029,1078,1127,1176,1225,1274,1323,1372,1421,1470,1500]
["Verre vin rouge 15 cl",1500,null,"Rouge",{"$f":"ROUNDUP(C35/L35,0.1)","v":0},null,null,null,2.2999999999999998,null,null,44,1496,44,{"$f":"N35+44","v":88},{"$f":"O35+44","v":132},{"$f":"P35+44","v":176},220,264,308,352,396,440,484,528,572,616,660,704,748,792,836,880,924,968,1012,1056,1100,1144,1188,1232,1276,1320,1364,1408,1452,1496]
["Verre cognac 14 cl",150,null,"Rose",0,null,null,null,2,null,null,36,150,36,72,108,144,150]
["Verre à thé cyl. 25 cl",300,null,"Jaune",0,null,null,null,2,null,null,25,300,25,50,75,100,125,150,175,200,225,250,275,300]
["Carafe à eau 1 lt",30,null,"Gris",{"$f":"ROUNDUP(C38/12,0.1)","v":0},null,null,null,5,null,null,1,30,1,2,3,4,5,6,7,8,9,10,11,12,13,14,15,16,17,18,19,20,21,22,23,24,25,26,27,28,29,30]
[]
["3) COUVERTS",null,null,null,null,null,null,"s/total manquant"]
[]
["Cuillère menu, inox",2000,null,"Bleu",{"$f":"C42/L42","v":0},null,null,null,2.4500000000000002,null,null,100,2000,100,200,300,400,500,600,700,800,900,1000,1100,1200,1300,1400,1500,1600,1700,1800,1900,2000]
["Fourchette menu, inox",2000,null,"Vert",{"$f":"C43/L43","v":0},null,null,null,2.4500000000000002,null,null,100,2000]
["Couteau",2000,null,"Rouge",0,null,null,null,3.7,null,null,100,2000]
["Cuillère mocca, inox",500,null,"vert",0,null,null,null,1.1000000000000001,null,null,100,500,100,200,300,400,500]
["Cuillère thé/café, inox",1000,null,"Rouge",0,null,null,null,1.1000000000000001,null,null,100,1000,100,200,300,400,500,600,700,800,900,1000]
[null,null,null,null,null,null,null,"s/total manquant"]

{"sheet":"Page 2","index":1,"n_rows":43,"n_cols":9,"rows_kept":43,"cut":false,"hidden":false,"merged":[[3,0,3,1],[42,6,42,7]]}
[null,null,"Stock","Commandé","Reçu","Rendu","Manque","Prix / pc","Total"]
[null,null,"Marive",null,null,null,null,"casse/perte","manquant"]
[]
["4) ARTICLES DE CUISINE"]
[]
[1,"Marmite haute inox Æ 40 cm",1,null,null,null,null,680]
[2,"Marmite haute inox Æ 32 cm",2,null,null,null,null,400]
[3,"Casserole haute inox Æ 36 cm",1,null,null,null,null,500]
[4,"Casserole haute Æ 32 cm",1,null,null,null,null,380]
[5,"Casserole basse inox Æ 36 cm",1,null,null,null,null,450]
[6,"Casserole basse inox Æ 32 cm",1,null,null,null,null,300]
[7,"Passoire à légumes Æ 50 cm",2,null,null,null,null,200]
[8,"Passoire à légumes Æ 35 cm",1,null,null,null,null,120]
[9,"Bassine universelle Æ 41 cm",1,null,null,null,null,65]
[10,"Bassine universelle Æ 32 cm",2,null,null,null,null,45]
[11,"Bassine universelle Æ 24 cm",2,null,null,null,null,25]
[12,"Cuvette à pâte Æ 36 cm",2,null,null,null,null,90]
[13,"Cuvette à pâte Æ 32 cm",2,null,null,null,null,70]
[14,"Casserole à manche Æ 26 cm",2,null,null,null,null,260]
[15,"Casserole à manche Æ 24 cm",2,null,null,null,null,220]
[16,"Sauteuse inox Æ 24 cm",3,null,null,null,null,180]
[17,"Poêle Lyonnaise Æ 36 cm",2,null,null,null,null,180]
[18,"Poêle Lyonnaise Æ 28 cm",2,null,null,null,null,120]
[19,"Bac GN 1/9, 17.6/10.8/10 cm",10,null,null,null,null,50]
[20,"Bac GN 1/3, 32.5/17.6/15 cm",10,null,null,null,null,75]
[21,"Bac GN 1/2, 32.5/26.5/15 cm",5,null,null,null,null,80]
[22,"Bac GN 1/2, 32.5/26.5/20 cm",5,null,null,null,null,90]
[23,"Bac GN 1/1, 53/32.5/6.5 cm",5,null,null,null,null,80]
[24,"Bac GN 1/1, 53/32.5/10 cm",10,null,null,null,null,80]
[25,"Bac GN 1/1, 53/32.5/15 cm",10,null,null,null,null,110]
[26,"Bac GN 1/1, 53/32.5/20 cm",5,null,null,null,null,130]
[27,"Plat à viande, inox 48/29 cm",30,null,null,null,null,100]
[28,"Plateau GN 1/1, 53/32.5/2 cm",20,null,null,null,null,45]
[29,"Plateau GN 2/1, 65/53/2 cm",10,null,null,null,null,74]
[30,"Bac frigo GN 1/3, 15 cm",3,null,null,null,null,38]
[31,"Bac frigo GN 1/2, 20 cm",3,null,null,null,null,55]
[32,"Bac frigo GN 1/1, 10 cm",3,null,null,null,null,62]
[33,"Bac frigo GN 1/1, 20 cm",3,null,null,null,null,85]
[34,"Couvercle Bac frigo GN 1/3",17,null,null,null,null,27]
[35,"Couvercle Bac frigo GN 1/2",3,null,null,null,null,33]
[36,"Couvercle Bac frigo GN 1/1",4,null,null,null,null,47]
[37,"Couvercle GN 1/3, 32.5/17.6 cm",5,null,null,null,null,25]
[null,null,null,null,null,null,"s/total manquant"]

{"sheet":"Page 3","index":2,"n_rows":43,"n_cols":9,"rows_kept":43,"cut":false,"hidden":false,"merged":[[3,0,3,1],[42,6,42,7]]}
[null,null,"Stock","Commandé","Reçu","Rendu","Manque","Prix / pc","Total"]
[null,null,"Marive",null,null,null,null,"casse/perte","manquant"]
[]
["4) ARTICLES DE CUISINE"]
[]
[38,"Couvercle GN 1/2, 32.5/26.5 cm",5,null,null,null,null,28]
[39,"Couvercle GN 1/1, 53/32.5 cm",10,null,null,null,null,35]
[40,"Pot à lait inox, 2 lt.",4,null,null,null,null,110]
[41,"Mesure graduée, 1 lt.",1,null,null,null,null,25]
[42,"Saucière Gr, inox 40 cl",30,null,null,null,null,80]
[43,"Légumier, inox 22 cm",15,null,null,null,null,80]
[44,"Crochet inox",10,null,null,null,null,4]
[45,"Fouet à manche, 50 cm",1,null,null,null,null,52]
[46,"Fouet à manche, 25 cm",2,null,null,null,null,25]
[47,"Entonnoir inox   12 cm",2,null,null,null,null,36]
[48,"Rape 4 faces carrées, 19 cm",1,null,null,null,null,60]
[49,"Ecumoire plate   14 cm",2,null,null,null,null,60]
[50,"Ecumoire plate   10 cm",5,null,null,null,null,50]
[51,"Ecumoire arraignée   16 cm",2,null,null,null,null,50]
[52,"Ecumoire arraignée   12 cm",1,null,null,null,null,50]
[53,"Chinois métal   24 cm",1,null,null,null,null,130]
[54,"Passoire à manche ",1,null,null,null,null,180]
[55,"Planche à rainure, 32/26/2 cm",4,null,null,null,null,48]
[56,"Planche à rainure, 53/32/2 cm",1,null,null,null,null,78]
[57,"Planche à hacher, 53/32/2 cm",2,null,null,null,null,65]
[58,"Planche à hacher, 60/40/4 cm",1,null,null,null,null,140]
[59,"Louche inox   16 cm",1,null,null,null,null,100]
[60,"Louche inox   12 cm",2,null,null,null,null,70]
[61,"Louche inox   10 cm",4,null,null,null,null,50]
[62,"Louche inox   6,5 cm",4,null,null,null,null,40]
[63,"Cuillère à sauce   6,5 cm",4,null,null,null,null,45]
[64,"Spatule inox, 35 cm",1,null,null,null,null,35]
[65,"Spatule inox, 48 cm",1,null,null,null,null,60]
[66,"Couvercle, inox 22 cm",15,null,null,null,null,39]
[67,"Couvercle inox   40 cm",1,null,null,null,null,82]
[68,"Couvercle inox   36 cm",1,null,null,null,null,66]
[69,"Couvercle inox   32 cm",1,null,null,null,null,55]
[70,"Couvercle inox   26 cm",1,null,null,null,null,40]
[71,"Couvercle inox   24 cm",1,null,null,null,null,35]
[72,"Ouvre-boîte Bonzer, 53 cm",1,null,null,null,null,150]
[73,"Corbeille à pain 29/21/6 cm",200,null,null,null,null,9]
[75,"Plateau antidérapant, GN 1/1",300,null,null,null,null,50]
[null,null,null,null,null,null,"s/total manquant"]

{"sheet":"Page 4","index":3,"n_rows":39,"n_cols":25,"rows_kept":39,"cut":false,"hidden":false,"merged":[[36,2,36,3],[38,2,38,3],[3,0,3,2],[10,0,10,1],[10,6,10,7],[14,1,16,6],[30,4,30,7],[33,1,33,7]]}
[null,null,"Stock","Commandé","Reçu","Rendu","Manque","Prix / pc","Total"]
[null,null,"Marive",null,null,null,null,"casse/perte","manquant"]
[]
["5) ARTICLES POUR FOURS A AIR"]
[]
[77,"Grille GN 1/1",15,null,null,null,null,70]
[78,"Bac perforé GN 1/1",5,null,null,null,null,120]
[79,"Plaque émaillée GN 1/1",4,null,null,null,null,100]
[80,"Bac GN 1/1, 53/32.5/6.5 cm",7,null,null,null,null,80]
[]
["6) DIVERS",null,null,null,null,null,"s/total manquant"]
[]
[null,"Trancheuse",1]
[null,"Machine universelle",1]
[null,"Matériel pour Machine Universelle"]
[]
[]
[null,"Congélateur bahut 500 lt",2]
[null,"Thermos 20lt café",2]
[null,"Thermos 20lt eau chaude",2]
[null,"Machine à café Raygil bar",1]
[null,"Machine à glaçon bar",1]
[null,"Machine à café Cappuccino, office",2]
[null,"Machine à café Cappuccino, bar",1]
[null,"Tiroirs réfrigérant office",1]
[null,"Chambre froide",1]
[null,"Table de service",null,null,null,null,null,null,null,null,1,2,3,4,5,6,7,8,9,10,11,12,13,14,15]
[null,"Chaise",null,null,null,null,null,null,null,null,12,24,36]
[]
[]
[null,null,null,null,"Total vaisselle manquante"]
[]
[]
[null,"Les prix indiqués dans la liste sont à titre indicatifs.\nEn cas de perte ou de casse une facture sera établie au nom de l'organisateur "]
[]
[null,"Ne pas remplir, usage interne à La Marive"]
[null,"Date de sortie :","Signature :"]
[]
[null,"Date de retour :","Signature :"]